[Event "Titled Tuesday Blitz July 11 Early 2023"]
[White "Liyanage, Ranindu Dilshan"]
[Black "Pham, Le Thao Nguyen"]
[WhiteFideId "9915834"]
[BlackFideId "12401226"]
[WhiteElo "2640"]
[BlackElo "2532"]
[Result "1/2-1/2"]
[Round "8"]
[TimeControl "180+2"]
[Date "2023.07.11"]
[WhiteClock "0:00:07"]
[BlackClock "0:00:06"]
[Board "93"]

1. e4 {[%clk 0:03:00]}  c5 {[%clk 0:02:47]} 2. c3 {[%clk 0:03:00]}  Nf6 {[%clk 0:02:44]} 3. e5 {[%clk 0:03:00]}  Nd5 {[%clk 0:02:45]} 4. Nf3 {[%clk 0:03:01]}  e6 {[%clk 0:02:44]} 5. d4 {[%clk 0:03:00]}  cxd4 {[%clk 0:02:38]} 6. cxd4 {[%clk 0:03:01]}  Nc6 {[%clk 0:02:38]} 7. Bc4 {[%clk 0:02:57]}  d6 {[%clk 0:02:36]} 8. O-O {[%clk 0:02:55]}  Nb6 {[%clk 0:02:34]} 9. Bb5 {[%clk 0:02:55]}  Bd7 {[%clk 0:02:32]} 10. Qe2 {[%clk 0:02:50]}  a6 {[%clk 0:02:18]} 11. Bd3 {[%clk 0:02:25]}  Nb4 {[%clk 0:02:16]} 12. Nc3 {[%clk 0:02:22]}  Nxd3 {[%clk 0:02:13]} 13. Qxd3 {[%clk 0:02:23]}  d5 {[%clk 0:02:00]} 14. a4 {[%clk 0:02:11]}  Be7 {[%clk 0:01:48]} 15. b3 {[%clk 0:02:00]}  O-O {[%clk 0:01:41]} 16. Ne2 {[%clk 0:02:00]}  Rc8 {[%clk 0:01:37]} 17. Bd2 {[%clk 0:01:58]}  Na8 {[%clk 0:01:12]} 18. Ng3 {[%clk 0:01:51]}  h6 {[%clk 0:00:58]} 19. Nh5 {[%clk 0:01:49]}  Be8 {[%clk 0:00:54]} 20. Qe3 {[%clk 0:01:47]}  f5 {[%clk 0:00:35]} 21. Nxg7 {[%clk 0:01:29]}  f4 {[%clk 0:00:34]} 22. Qe2 {[%clk 0:01:18]}  Kxg7 {[%clk 0:00:33]} 23. Ne1 {[%clk 0:01:18]}  h5 {[%clk 0:00:27]} 24. g3 {[%clk 0:01:16]}  Bg5 {[%clk 0:00:21]} 25. Nf3 {[%clk 0:01:14]}  Bh6 {[%clk 0:00:20]} 26. Nh4 {[%clk 0:01:13]}  Qe7 {[%clk 0:00:12]} 27. Kh1 {[%clk 0:01:12]}  f3 {[%clk 0:00:11]} 28. Bxh6+ {[%clk 0:01:04]}  Kxh6 {[%clk 0:00:12]} 29. Nxf3 {[%clk 0:01:04]}  Bg6 {[%clk 0:00:09]} 30. Qd2+ {[%clk 0:00:51]}  Kg7 {[%clk 0:00:09]} 31. Nh4 {[%clk 0:00:50]}  Nb6 {[%clk 0:00:07]} 32. Rac1 {[%clk 0:00:46]}  Nd7 {[%clk 0:00:06]} 33. f3 {[%clk 0:00:29]}  Kh7 {[%clk 0:00:06]} 34. Ng2 {[%clk 0:00:26]}  Rxc1 {[%clk 0:00:04]} 35. Rxc1 {[%clk 0:00:26]}  Rxf3 {[%clk 0:00:04]} 36. Nf4 {[%clk 0:00:23]}  Nf8 {[%clk 0:00:04]} 37. Qe2 {[%clk 0:00:18]}  Rxf4 {[%clk 0:00:04]} 38. gxf4 {[%clk 0:00:18]}  Qh4 {[%clk 0:00:04]} 39. Qe3 {[%clk 0:00:13]}  Be4+ {[%clk 0:00:04]} 40. Kg1 {[%clk 0:00:13]}  Ng6 {[%clk 0:00:05]} 41. Qg3 {[%clk 0:00:13]}  Qxf4 {[%clk 0:00:04]} 42. Qxf4 {[%clk 0:00:12]}  Nxf4 {[%clk 0:00:05]} 43. Rc7+ {[%clk 0:00:13]}  Kg6 {[%clk 0:00:06]} 44. Rxb7 {[%clk 0:00:14]}  Ne2+ {[%clk 0:00:06]} 45. Kf2 {[%clk 0:00:14]}  Nxd4 {[%clk 0:00:07]} 46. b4 {[%clk 0:00:14]}  Kf5 {[%clk 0:00:06]} 47. b5 {[%clk 0:00:14]}  axb5 {[%clk 0:00:07]} 48. axb5 {[%clk 0:00:07]}  Nb3 {[%clk 0:00:03]} 49. b6 {[%clk 0:00:07]}  d4 {[%clk 0:00:03]} 50. Rc7 {[%clk 0:00:07]}  Na5 {[%clk 0:00:03]} 51. Rc5 {[%clk 0:00:05]}  Nb7 {[%clk 0:00:03]} 52. Rb5 {[%clk 0:00:06]}  Kf4 {[%clk 0:00:03]} 53. Ke2 {[%clk 0:00:06]}  h4 {[%clk 0:00:03]} 54. Rb4 {[%clk 0:00:06]}  Kxe5 {[%clk 0:00:02]} 55. Rb5+ {[%clk 0:00:06]}  Kf4 {[%clk 0:00:02]} 56. Rh5 {[%clk 0:00:07]}  e5 {[%clk 0:00:03]} 57. Rxh4+ {[%clk 0:00:06]}  Kf5 {[%clk 0:00:03]} 58. Rh7 {[%clk 0:00:06]}  Kf4 {[%clk 0:00:02]} 59. Rf7+ {[%clk 0:00:06]}  Kg4 {[%clk 0:00:03]} 60. Re7 {[%clk 0:00:05]}  Bf3+ {[%clk 0:00:03]} 61. Kd3 {[%clk 0:00:04]}  Kf4 {[%clk 0:00:01]} 62. Rf7+ {[%clk 0:00:03]}  Kg4 {[%clk 0:00:02]} 63. h3+ {[%clk 0:00:04]}  Kg3 {[%clk 0:00:02]} 64. h4 {[%clk 0:00:04]}  Bd5 {[%clk 0:00:02]} 65. Rd7 {[%clk 0:00:03]}  Bc6 {[%clk 0:00:03]} 66. Rc7 {[%clk 0:00:04]}  Bf3 {[%clk 0:00:03]} 67. h5 {[%clk 0:00:04]}  Nd6 {[%clk 0:00:03]} 68. h6 {[%clk 0:00:04]}  Be4+ {[%clk 0:00:03]} 69. Kd2 {[%clk 0:00:04]}  Kf2 {[%clk 0:00:03]} 70. Rd7 {[%clk 0:00:04]}  Nc4+ {[%clk 0:00:03]} 71. Kc1 {[%clk 0:00:04]}  Nxb6 {[%clk 0:00:03]} 72. Re7 {[%clk 0:00:04]}  Nc4 {[%clk 0:00:03]} 73. h7 {[%clk 0:00:04]}  Bxh7 {[%clk 0:00:03]} 74. Rxh7 {[%clk 0:00:05]}  Ke3 {[%clk 0:00:04]} 75. Rh3+ {[%clk 0:00:05]}  Ke4 {[%clk 0:00:04]} 76. Kc2 {[%clk 0:00:06]}  Ne3+ {[%clk 0:00:04]} 77. Kd2 {[%clk 0:00:06]}  Kd5 {[%clk 0:00:04]} 78. Rh8 {[%clk 0:00:06]}  Nc4+ {[%clk 0:00:04]} 79. Ke2 {[%clk 0:00:05]}  e4 {[%clk 0:00:04]} 80. Rd8+ {[%clk 0:00:06]}  Nd6 {[%clk 0:00:05]} 81. Kd2 {[%clk 0:00:06]}  Ke5 {[%clk 0:00:04]} 82. Ke2 {[%clk 0:00:05]}  d3+ {[%clk 0:00:04]} 83. Kd2 {[%clk 0:00:05]}  Nc4+ {[%clk 0:00:04]} 84. Kc3 {[%clk 0:00:06]}  Ne3 {[%clk 0:00:04]} 85. Re8+ {[%clk 0:00:06]}  Kf4 {[%clk 0:00:05]} 86. Rf8+ {[%clk 0:00:06]}  Nf5 {[%clk 0:00:06]} 87. Kd2 {[%clk 0:00:07]}  Ke5 {[%clk 0:00:06]} 88. Re8+ {[%clk 0:00:07]}  Kf4 {[%clk 0:00:05]} 89. Rf8 {[%clk 0:00:07]}  Kg4 {[%clk 0:00:06]} 90. Rg8+ {[%clk 0:00:06]}  Kf4 {[%clk 0:00:06]} 91. Rf8 {[%clk 0:00:07]} 1/2-1/2


[Site "https://www.chess.com"]

[Event "Titled Tuesday Blitz July 11 Early 2023"]
[White "Koshulyan, Egor A."]
[Black "Palencia Morales, Wilson Guillermo"]
[WhiteFideId "24237000"]
[BlackFideId "4401859"]
[WhiteElo "2633"]
[BlackElo "2532"]
[Result "1/2-1/2"]
[Round "8"]
[TimeControl "180+2"]
[Date "2023.07.11"]
[WhiteClock "0:00:13"]
[BlackClock "0:00:08"]
[Board "94"]

1. e4 {[%clk 0:03:00]}  c5 {[%clk 0:02:56]} 2. Nf3 {[%clk 0:03:01]}  d6 {[%clk 0:02:56]} 3. d4 {[%clk 0:03:01]}  cxd4 {[%clk 0:02:56]} 4. Qxd4 {[%clk 0:03:02]}  Nc6 {[%clk 0:02:56]} 5. Bb5 {[%clk 0:03:01]}  Qa5+ {[%clk 0:02:56]} 6. Nc3 {[%clk 0:03:01]}  Qxb5 {[%clk 0:02:56]} 7. Nxb5 {[%clk 0:03:01]}  Nxd4 {[%clk 0:02:57]} 8. Nfxd4 {[%clk 0:03:02]}  Kd8 {[%clk 0:02:58]} 9. c4 {[%clk 0:02:59]}  Bd7 {[%clk 0:02:55]} 10. Be3 {[%clk 0:02:56]}  a6 {[%clk 0:02:53]} 11. Nc3 {[%clk 0:02:56]}  e6 {[%clk 0:02:53]} 12. Nb3 {[%clk 0:02:50]}  Rc8 {[%clk 0:02:52]} 13. Bb6+ {[%clk 0:02:49]}  Ke8 {[%clk 0:02:52]} 14. Na5 {[%clk 0:02:49]}  Bc6 {[%clk 0:02:52]} 15. O-O-O {[%clk 0:02:39]}  Nf6 {[%clk 0:02:51]} 16. f3 {[%clk 0:02:39]}  Nd7 {[%clk 0:02:51]} 17. Be3 {[%clk 0:02:39]}  Be7 {[%clk 0:02:46]} 18. Kb1 {[%clk 0:02:24]}  Bd8 {[%clk 0:02:35]} 19. Nb3 {[%clk 0:02:21]}  Be7 {[%clk 0:02:28]} 20. Bf4 {[%clk 0:02:02]}  Ne5 {[%clk 0:02:23]} 21. c5 {[%clk 0:02:02]}  f6 {[%clk 0:02:10]} 22. cxd6 {[%clk 0:02:01]}  Bd8 {[%clk 0:02:10]} 23. Nc5 {[%clk 0:01:37]}  Bd7 {[%clk 0:02:00]} 24. Nb3 {[%clk 0:01:09]}  Nc4 {[%clk 0:01:51]} 25. Nd2 {[%clk 0:00:40]}  Nb6 {[%clk 0:01:43]} 26. Bg3 {[%clk 0:00:37]}  Rc6 {[%clk 0:01:41]} 27. Nb3 {[%clk 0:00:34]}  Nc4 {[%clk 0:01:39]} 28. Nd4 {[%clk 0:00:34]}  Rb6 {[%clk 0:01:35]} 29. Nb3 {[%clk 0:00:33]}  e5 {[%clk 0:01:33]} 30. Nd5 {[%clk 0:00:31]}  Rxd6 {[%clk 0:01:30]} 31. Nc5 {[%clk 0:00:30]}  Bc6 {[%clk 0:01:20]} 32. Rc1 {[%clk 0:00:28]}  b5 {[%clk 0:01:14]} 33. Rhd1 {[%clk 0:00:22]}  Bxd5 {[%clk 0:01:07]} 34. exd5 {[%clk 0:00:23]}  Bb6 {[%clk 0:00:58]} 35. Ne4 {[%clk 0:00:16]}  Rd8 {[%clk 0:00:52]} 36. b3 {[%clk 0:00:16]}  Ne3 {[%clk 0:00:50]} 37. Rd3 {[%clk 0:00:17]}  Nxd5 {[%clk 0:00:43]} 38. Rc6 {[%clk 0:00:17]}  Bd4 {[%clk 0:00:28]} 39. a3 {[%clk 0:00:13]}  a5 {[%clk 0:00:27]} 40. Be1 {[%clk 0:00:10]}  a4 {[%clk 0:00:23]} 41. Nd6+ {[%clk 0:00:05]}  Kd7 {[%clk 0:00:22]} 42. Ra6 {[%clk 0:00:06]}  Ra8 {[%clk 0:00:22]} 43. Rxa8 {[%clk 0:00:06]}  Rxa8 {[%clk 0:00:23]} 44. Nxb5 {[%clk 0:00:07]}  axb3 {[%clk 0:00:22]} 45. Nxd4 {[%clk 0:00:07]}  exd4 {[%clk 0:00:23]} 46. Rxd4 {[%clk 0:00:08]}  Kc6 {[%clk 0:00:22]} 47. Kb2 {[%clk 0:00:09]}  Re8 {[%clk 0:00:20]} 48. Bg3 {[%clk 0:00:08]}  Re2+ {[%clk 0:00:20]} 49. Kxb3 {[%clk 0:00:09]}  Rxg2 {[%clk 0:00:20]} 50. a4 {[%clk 0:00:09]}  Re2 {[%clk 0:00:20]} 51. Rc4+ {[%clk 0:00:09]}  Kb6 {[%clk 0:00:19]} 52. Rd4 {[%clk 0:00:09]}  Kc6 {[%clk 0:00:19]} 53. a5 {[%clk 0:00:07]}  Re3+ {[%clk 0:00:19]} 54. Kb2 {[%clk 0:00:07]}  Kc5 {[%clk 0:00:19]} 55. Ra4 {[%clk 0:00:06]}  Kb5 {[%clk 0:00:18]} 56. Ra1 {[%clk 0:00:06]}  Re2+ {[%clk 0:00:16]} 57. Kb3 {[%clk 0:00:05]}  Re3+ {[%clk 0:00:14]} 58. Kc2 {[%clk 0:00:06]}  Nb4+ {[%clk 0:00:14]} 59. Kd2 {[%clk 0:00:06]}  Rd3+ {[%clk 0:00:13]} 60. Ke2 {[%clk 0:00:06]}  Rc3 {[%clk 0:00:13]} 61. Be1 {[%clk 0:00:06]}  Rc2+ {[%clk 0:00:13]} 62. Kd1 {[%clk 0:00:06]}  Rb2 {[%clk 0:00:11]} 63. Bxb4 {[%clk 0:00:07]}  Rxb4 {[%clk 0:00:11]} 64. a6 {[%clk 0:00:07]}  Rd4+ {[%clk 0:00:10]} 65. Ke2 {[%clk 0:00:08]}  Rd8 {[%clk 0:00:11]} 66. Ke3 {[%clk 0:00:08]}  Ra8 {[%clk 0:00:10]} 67. a7 {[%clk 0:00:09]}  Kb6 {[%clk 0:00:10]} 68. Ke4 {[%clk 0:00:09]}  Rxa7 {[%clk 0:00:09]} 69. Rxa7 {[%clk 0:00:07]}  Kxa7 {[%clk 0:00:10]} 70. Kd5 {[%clk 0:00:08]}  Kb6 {[%clk 0:00:10]} 71. Ke6 {[%clk 0:00:09]}  Kc5 {[%clk 0:00:11]} 72. Kf7 {[%clk 0:00:09]}  f5 {[%clk 0:00:10]} 73. Kxg7 {[%clk 0:00:09]}  Kd4 {[%clk 0:00:11]} 74. Kxh7 {[%clk 0:00:05]}  Ke3 {[%clk 0:00:11]} 75. Kg6 {[%clk 0:00:05]}  f4 {[%clk 0:00:11]} 76. h4 {[%clk 0:00:06]}  Kxf3 {[%clk 0:00:11]} 77. h5 {[%clk 0:00:07]}  Kg4 {[%clk 0:00:10]} 78. h6 {[%clk 0:00:08]}  f3 {[%clk 0:00:10]} 79. h7 {[%clk 0:00:09]}  f2 {[%clk 0:00:11]} 80. h8=Q {[%clk 0:00:10]}  f1=Q {[%clk 0:00:10]} 81. Qh5+ {[%clk 0:00:11]}  Kg3 {[%clk 0:00:10]} 82. Qg5+ {[%clk 0:00:11]}  Kh3 {[%clk 0:00:08]} 83. Qh5+ {[%clk 0:00:11]}  Kg3 {[%clk 0:00:08]} 84. Qg5+ {[%clk 0:00:12]}  Kh3 {[%clk 0:00:08]} 85. Qf5+ {[%clk 0:00:12]}  Qxf5+ {[%clk 0:00:08]} 86. Kxf5 {[%clk 0:00:13]} 1/2-1/2


[Site "https://www.chess.com"]

[Event "Titled Tuesday Blitz July 11 Early 2023"]
[White "Tokman, Ariel"]
[Black "Dronavalli, Harika"]
[WhiteFideId "117420"]
[BlackFideId "5015197"]
[WhiteElo "2531"]
[BlackElo "2627"]
[Result "0-1"]
[Round "8"]
[TimeControl "180+2"]
[Date "2023.07.11"]
[WhiteClock "0:00:03"]
[BlackClock "0:00:23"]
[Board "96"]

1. d4 {[%clk 0:03:00]}  g6 {[%clk 0:02:59]} 2. Nf3 {[%clk 0:03:00]}  Bg7 {[%clk 0:02:59]} 3. c3 {[%clk 0:03:00]}  d6 {[%clk 0:02:59]} 4. Bg5 {[%clk 0:03:00]}  h6 {[%clk 0:02:57]} 5. Bh4 {[%clk 0:03:00]}  Nd7 {[%clk 0:02:58]} 6. e3 {[%clk 0:03:00]}  Ngf6 {[%clk 0:02:58]} 7. h3 {[%clk 0:02:58]}  Ne4 {[%clk 0:02:55]} 8. Nbd2 {[%clk 0:02:57]}  Ndf6 {[%clk 0:02:52]} 9. Nxe4 {[%clk 0:02:55]}  Nxe4 {[%clk 0:02:52]} 10. Nd2 {[%clk 0:02:56]}  Nxd2 {[%clk 0:02:51]} 11. Qxd2 {[%clk 0:02:57]}  c5 {[%clk 0:02:45]} 12. dxc5 {[%clk 0:02:55]}  dxc5 {[%clk 0:02:45]} 13. Qxd8+ {[%clk 0:02:55]}  Kxd8 {[%clk 0:02:46]} 14. O-O-O+ {[%clk 0:02:55]}  Kc7 {[%clk 0:02:30]} 15. Bxe7 {[%clk 0:02:54]}  Be6 {[%clk 0:02:19]} 16. Bxc5 {[%clk 0:02:13]}  Bxa2 {[%clk 0:02:16]} 17. Bd4 {[%clk 0:02:12]}  Bxd4 {[%clk 0:02:13]} 18. Rxd4 {[%clk 0:02:13]}  Rhd8 {[%clk 0:02:08]} 19. Be2 {[%clk 0:02:02]}  Bb3 {[%clk 0:01:57]} 20. Bf3 {[%clk 0:01:58]}  a5 {[%clk 0:01:55]} 21. Re1 {[%clk 0:01:46]}  a4 {[%clk 0:01:38]} 22. Re2 {[%clk 0:01:43]}  Ra7 {[%clk 0:01:28]} 23. Red2 {[%clk 0:01:38]}  Rxd4 {[%clk 0:01:26]} 24. Rxd4 {[%clk 0:01:38]}  b5 {[%clk 0:01:26]} 25. Be2 {[%clk 0:01:33]}  Kc6 {[%clk 0:01:22]} 26. Rb4 {[%clk 0:01:29]}  Ra5 {[%clk 0:01:22]} 27. Kd2 {[%clk 0:01:22]}  Kc5 {[%clk 0:01:20]} 28. e4 {[%clk 0:01:19]}  Be6 {[%clk 0:01:05]} 29. Ke3 {[%clk 0:01:17]}  Bd7 {[%clk 0:01:03]} 30. Rd4 {[%clk 0:01:08]}  Bc6 {[%clk 0:00:58]} 31. Rd8 {[%clk 0:01:01]}  Ra7 {[%clk 0:00:57]} 32. Rc8 {[%clk 0:00:54]}  a3 {[%clk 0:00:53]} 33. bxa3 {[%clk 0:00:45]}  Rxa3 {[%clk 0:00:54]} 34. Kd2 {[%clk 0:00:37]}  Ra2+ {[%clk 0:00:52]} 35. Kd3 {[%clk 0:00:37]}  Ra3 {[%clk 0:00:50]} 36. Rb8 {[%clk 0:00:33]}  Bd7 {[%clk 0:00:46]} 37. f4 {[%clk 0:00:28]}  Be6 {[%clk 0:00:46]} 38. Bf3 {[%clk 0:00:26]}  Bc4+ {[%clk 0:00:46]} 39. Kd2 {[%clk 0:00:27]}  Ra2+ {[%clk 0:00:45]} 40. Ke3 {[%clk 0:00:27]}  Rc2 {[%clk 0:00:41]} 41. Rc8+ {[%clk 0:00:27]}  Kb6 {[%clk 0:00:41]} 42. Kd4 {[%clk 0:00:28]}  Rd2+ {[%clk 0:00:41]} 43. Ke5 {[%clk 0:00:27]}  Rd3 {[%clk 0:00:40]} 44. Be2 {[%clk 0:00:11]}  Rxc3 {[%clk 0:00:40]} 45. Bxc4 {[%clk 0:00:11]}  Rxc4 {[%clk 0:00:40]} 46. Rb8+ {[%clk 0:00:11]}  Ka5 {[%clk 0:00:39]} 47. g4 {[%clk 0:00:09]}  b4 {[%clk 0:00:36]} 48. f5 {[%clk 0:00:08]}  gxf5 {[%clk 0:00:33]} 49. gxf5 {[%clk 0:00:07]}  Rc6 {[%clk 0:00:33]} 50. Kf4 {[%clk 0:00:03]}  f6 {[%clk 0:00:32]} 51. Rh8 {[%clk 0:00:01]}  b3 {[%clk 0:00:30]} 52. Ra8+ {[%clk 0:00:01]}  Kb5 {[%clk 0:00:30]} 53. Rb8+ {[%clk 0:00:01]}  Rb6 {[%clk 0:00:26]} 54. Rd8 {[%clk 0:00:02]}  Kc4 {[%clk 0:00:26]} 55. Rd1 {[%clk 0:00:02]}  b2 {[%clk 0:00:26]} 56. e5 {[%clk 0:00:02]}  fxe5+ {[%clk 0:00:25]} 57. Kxe5 {[%clk 0:00:02]}  b1=Q {[%clk 0:00:25]} 58. Rxb1 {[%clk 0:00:02]}  Rxb1 {[%clk 0:00:26]} 59. f6 {[%clk 0:00:03]}  Re1+ {[%clk 0:00:23]} 60. Kf5 {[%clk 0:00:03]} 0-1


[Site "https://www.chess.com"]

[Event "Titled Tuesday Blitz July 11 Early 2023"]
[White "Chen, Max"]
[Black "Djokic, Mihailo"]
[WhiteFideId "2622440"]
[BlackFideId "976440"]
[WhiteElo "2490"]
[BlackElo "2618"]
[Result "1-0"]
[Round "8"]
[TimeControl "180+2"]
[Date "2023.07.11"]
[WhiteClock "0:00:35"]
[BlackClock "0:00:00"]
[Board "97"]

1. e4 {[%clk 0:02:58]}  c5 {[%clk 0:03:00]} 2. Nf3 {[%clk 0:02:57]}  d6 {[%clk 0:03:00]} 3. c3 {[%clk 0:02:57]}  Nf6 {[%clk 0:03:00]} 4. Be2 {[%clk 0:02:57]}  Nc6 {[%clk 0:03:00]} 5. d4 {[%clk 0:02:57]}  cxd4 {[%clk 0:03:00]} 6. cxd4 {[%clk 0:02:57]}  d5 {[%clk 0:03:01]} 7. e5 {[%clk 0:02:42]}  Ne4 {[%clk 0:03:01]} 8. O-O {[%clk 0:02:39]}  e6 {[%clk 0:03:01]} 9. Nc3 {[%clk 0:02:37]}  Nxc3 {[%clk 0:03:01]} 10. bxc3 {[%clk 0:02:37]}  Be7 {[%clk 0:03:01]} 11. g3 {[%clk 0:02:33]}  Bd7 {[%clk 0:03:01]} 12. h4 {[%clk 0:02:33]}  Rc8 {[%clk 0:03:01]} 13. Bd2 {[%clk 0:02:33]}  Na5 {[%clk 0:03:01]} 14. Bd3 {[%clk 0:02:31]}  Nc4 {[%clk 0:03:00]} 15. Bf4 {[%clk 0:02:28]}  Qa5 {[%clk 0:03:00]} 16. Qb3 {[%clk 0:02:23]}  b6 {[%clk 0:02:53]} 17. h5 {[%clk 0:02:22]}  Ba4 {[%clk 0:02:53]} 18. Qb1 {[%clk 0:02:20]}  Qxc3 {[%clk 0:02:53]} 19. Rc1 {[%clk 0:02:17]}  Qa5 {[%clk 0:02:53]} 20. Bxh7 {[%clk 0:02:13]}  Kd7 {[%clk 0:02:47]} 21. h6 {[%clk 0:02:01]}  g6 {[%clk 0:02:39]} 22. Bxg6 {[%clk 0:02:02]}  fxg6 {[%clk 0:02:40]} 23. Qxg6 {[%clk 0:02:02]}  Rcg8 {[%clk 0:02:40]} 24. Qf7 {[%clk 0:01:53]}  Rf8 {[%clk 0:02:40]} 25. Qh5 {[%clk 0:01:47]}  Rf5 {[%clk 0:02:39]} 26. Qg6 {[%clk 0:01:41]}  Rxf4 {[%clk 0:01:59]} 27. gxf4 {[%clk 0:01:38]}  Kd8 {[%clk 0:01:45]} 28. Qxe6 {[%clk 0:01:30]}  Bd7 {[%clk 0:01:43]} 29. Qf7 {[%clk 0:01:28]}  Rxh6 {[%clk 0:01:40]} 30. f5 {[%clk 0:01:17]}  Qa3 {[%clk 0:01:31]} 31. Kg2 {[%clk 0:01:15]}  Qb2 {[%clk 0:01:05]} 32. Qg8+ {[%clk 0:01:06]}  Kc7 {[%clk 0:00:51]} 33. f6 {[%clk 0:00:59]}  Bc5 {[%clk 0:00:33]} 34. dxc5 {[%clk 0:00:47]}  Ne3+ {[%clk 0:00:33]} 35. Kg1 {[%clk 0:00:44]}  b5 {[%clk 0:00:08]} 36. c6 {[%clk 0:00:42]}  Bf5 {[%clk 0:00:03]} 37. Qg7+ {[%clk 0:00:41]}  Kc8 {[%clk 0:00:00]} 38. Qxh6 {[%clk 0:00:35]} 1-0


[Site "https://www.chess.com"]

[Event "Titled Tuesday Blitz July 11 Early 2023"]
[White "Herman, Matthew"]
[Black "Shukhman, Anna"]
[WhiteFideId "2028964"]
[BlackFideId "54180058"]
[WhiteElo "2443"]
[BlackElo "2590"]
[Result "1-0"]
[Round "8"]
[TimeControl "180+2"]
[Date "2023.07.11"]
[WhiteClock "0:00:16"]
[BlackClock "0:01:03"]
[Board "99"]

1. Nf3 {[%clk 0:02:52]}  Nf6 {[%clk 0:03:00]} 2. g3 {[%clk 0:02:53]}  g6 {[%clk 0:03:01]} 3. Bg2 {[%clk 0:02:53]}  Bg7 {[%clk 0:03:02]} 4. O-O {[%clk 0:02:54]}  O-O {[%clk 0:03:02]} 5. d3 {[%clk 0:02:55]}  d6 {[%clk 0:03:02]} 6. e4 {[%clk 0:02:55]}  c5 {[%clk 0:03:02]} 7. a4 {[%clk 0:02:53]}  Nc6 {[%clk 0:03:02]} 8. h3 {[%clk 0:02:53]}  a6 {[%clk 0:03:02]} 9. Re1 {[%clk 0:02:47]}  Rb8 {[%clk 0:03:02]} 10. c3 {[%clk 0:02:45]}  e5 {[%clk 0:03:01]} 11. Bg5 {[%clk 0:02:38]}  h6 {[%clk 0:02:59]} 12. Bxf6 {[%clk 0:02:39]}  Qxf6 {[%clk 0:02:58]} 13. Na3 {[%clk 0:02:36]}  b5 {[%clk 0:02:57]} 14. axb5 {[%clk 0:02:35]}  axb5 {[%clk 0:02:56]} 15. Nc2 {[%clk 0:02:35]}  Be6 {[%clk 0:02:49]} 16. Ne3 {[%clk 0:02:35]}  Ra8 {[%clk 0:02:48]} 17. Qc2 {[%clk 0:02:23]}  Qe7 {[%clk 0:02:42]} 18. Nd2 {[%clk 0:01:48]}  Qb7 {[%clk 0:02:38]} 19. h4 {[%clk 0:01:34]}  Ne7 {[%clk 0:02:35]} 20. Kh2 {[%clk 0:01:17]}  Rxa1 {[%clk 0:02:33]} 21. Rxa1 {[%clk 0:01:17]}  Ra8 {[%clk 0:02:34]} 22. Rxa8+ {[%clk 0:01:13]}  Qxa8 {[%clk 0:02:32]} 23. Bh3 {[%clk 0:01:03]}  Bxh3 {[%clk 0:02:30]} 24. Kxh3 {[%clk 0:01:04]}  f5 {[%clk 0:02:30]} 25. Qb3+ {[%clk 0:01:03]}  Kh7 {[%clk 0:02:27]} 26. Qxb5 {[%clk 0:01:04]}  f4 {[%clk 0:02:26]} 27. Nec4 {[%clk 0:00:57]}  Qa1 {[%clk 0:02:20]} 28. Kg2 {[%clk 0:00:56]}  fxg3 {[%clk 0:02:18]} 29. fxg3 {[%clk 0:00:56]}  Qe1 {[%clk 0:01:59]} 30. Qd7 {[%clk 0:00:46]}  Ng8 {[%clk 0:01:58]} 31. Qg4 {[%clk 0:00:35]}  Nf6 {[%clk 0:01:56]} 32. Qf3 {[%clk 0:00:33]}  h5 {[%clk 0:01:56]} 33. Nf1 {[%clk 0:00:22]}  Qc1 {[%clk 0:01:44]} 34. Qe2 {[%clk 0:00:16]}  Bf8 {[%clk 0:01:32]} 35. Nfe3 {[%clk 0:00:12]}  Bh6 {[%clk 0:01:26]} 36. Nd5 {[%clk 0:00:09]}  Ng4 {[%clk 0:01:21]} 37. Nxd6 {[%clk 0:00:08]}  Be3 {[%clk 0:01:12]} 38. Nxe3 {[%clk 0:00:05]}  Nxe3+ {[%clk 0:01:12]} 39. Kf2 {[%clk 0:00:04]}  Nd1+ {[%clk 0:01:12]} 40. Kg2 {[%clk 0:00:04]}  Qxb2 {[%clk 0:00:59]} 41. Qxb2 {[%clk 0:00:04]}  Nxb2 {[%clk 0:00:59]} 42. Nb5 {[%clk 0:00:03]}  Nxd3 {[%clk 0:00:59]} 43. Kf3 {[%clk 0:00:03]}  Kg7 {[%clk 0:00:58]} 44. Nd6 {[%clk 0:00:04]}  Kf6 {[%clk 0:00:57]} 45. Nc4 {[%clk 0:00:04]}  Ke6 {[%clk 0:00:55]} 46. Ke3 {[%clk 0:00:04]}  Nc1 {[%clk 0:00:54]} 47. Kd2 {[%clk 0:00:04]}  Na2 {[%clk 0:00:50]} 48. Kc2 {[%clk 0:00:04]}  g5 {[%clk 0:00:48]} 49. hxg5 {[%clk 0:00:04]}  Kf7 {[%clk 0:00:48]} 50. Kb2 {[%clk 0:00:05]}  Kg6 {[%clk 0:00:49]} 51. Nxe5+ {[%clk 0:00:05]}  Kxg5 {[%clk 0:00:49]} 52. Kxa2 {[%clk 0:00:06]}  Kf6 {[%clk 0:00:49]} 53. Nf3 {[%clk 0:00:06]}  Ke6 {[%clk 0:00:50]} 54. Kb3 {[%clk 0:00:06]}  Kf6 {[%clk 0:00:50]} 55. Kc4 {[%clk 0:00:07]}  Ke6 {[%clk 0:00:51]} 56. Kxc5 {[%clk 0:00:07]}  Kf6 {[%clk 0:00:52]} 57. Kd4 {[%clk 0:00:07]}  h4 {[%clk 0:00:53]} 58. gxh4 {[%clk 0:00:08]}  Ke6 {[%clk 0:00:54]} 59. c4 {[%clk 0:00:08]}  Kf6 {[%clk 0:00:55]} 60. c5 {[%clk 0:00:09]}  Ke6 {[%clk 0:00:56]} 61. e5 {[%clk 0:00:09]}  Ke7 {[%clk 0:00:56]} 62. Kd5 {[%clk 0:00:10]}  Kd7 {[%clk 0:00:57]} 63. e6+ {[%clk 0:00:11]}  Ke7 {[%clk 0:00:58]} 64. h5 {[%clk 0:00:12]}  Ke8 {[%clk 0:00:58]} 65. c6 {[%clk 0:00:13]}  Kd8 {[%clk 0:00:59]} 66. h6 {[%clk 0:00:13]}  Ke8 {[%clk 0:01:00]} 67. h7 {[%clk 0:00:14]}  Ke7 {[%clk 0:01:01]} 68. Ke5 {[%clk 0:00:14]}  Kd8 {[%clk 0:01:00]} 69. h8=Q+ {[%clk 0:00:15]}  Kc7 {[%clk 0:01:01]} 70. Qg7+ {[%clk 0:00:15]}  Kb6 {[%clk 0:01:02]} 71. Qb7+ {[%clk 0:00:15]}  Kc5 {[%clk 0:01:02]} 72. c7 {[%clk 0:00:15]}  Kc4 {[%clk 0:01:03]} 73. c8=Q+ {[%clk 0:00:16]}  Kd3 {[%clk 0:01:03]} 74. Qe4# {[%clk 0:00:16]} 1-0


[Site "https://www.chess.com"]

[Event "Titled Tuesday Blitz July 11 Early 2023"]
[White "Avila Jimenez, Xavier"]
[Black "Arat, Ufuk Sezen"]
[WhiteFideId "2210533"]
[BlackFideId "6309089"]
[WhiteElo "2436"]
[BlackElo "2572"]
[Result "0-1"]
[Round "8"]
[TimeControl "180+2"]
[Date "2023.07.11"]
[WhiteClock "0:00:03"]
[BlackClock "0:00:28"]
[Board "100"]

1. d4 {[%clk 0:02:55]}  Nf6 {[%clk 0:02:59]} 2. c4 {[%clk 0:02:55]}  e6 {[%clk 0:02:59]} 3. Nc3 {[%clk 0:02:56]}  Bb4 {[%clk 0:02:59]} 4. f3 {[%clk 0:02:56]}  d5 {[%clk 0:02:59]} 5. a3 {[%clk 0:02:56]}  Bxc3+ {[%clk 0:02:59]} 6. bxc3 {[%clk 0:02:57]}  O-O {[%clk 0:02:59]} 7. cxd5 {[%clk 0:02:57]}  exd5 {[%clk 0:03:00]} 8. e3 {[%clk 0:02:58]}  c5 {[%clk 0:03:00]} 9. Bd3 {[%clk 0:02:58]}  Nc6 {[%clk 0:03:00]} 10. Ne2 {[%clk 0:02:58]}  b6 {[%clk 0:03:00]} 11. O-O {[%clk 0:02:58]}  Bb7 {[%clk 0:03:01]} 12. Ra2 {[%clk 0:02:58]}  cxd4 {[%clk 0:03:01]} 13. cxd4 {[%clk 0:02:58]}  Re8 {[%clk 0:03:00]} 14. g4 {[%clk 0:02:58]}  h6 {[%clk 0:02:57]} 15. Ng3 {[%clk 0:02:58]}  Ne7 {[%clk 0:02:51]} 16. Rg2 {[%clk 0:02:51]}  Qd6 {[%clk 0:02:49]} 17. h4 {[%clk 0:02:49]}  Ng6 {[%clk 0:02:45]} 18. Nf5 {[%clk 0:02:37]}  Qd7 {[%clk 0:02:44]} 19. g5 {[%clk 0:02:36]}  hxg5 {[%clk 0:02:42]} 20. hxg5 {[%clk 0:02:22]}  Nh7 {[%clk 0:02:32]} 21. f4 {[%clk 0:02:22]}  Rac8 {[%clk 0:02:31]} 22. Rh2 {[%clk 0:01:56]}  Nhf8 {[%clk 0:02:14]} 23. Qh5 {[%clk 0:01:44]}  Rc3 {[%clk 0:02:10]} 24. Bb1 {[%clk 0:01:04]}  Ba6 {[%clk 0:01:52]} 25. Rd1 {[%clk 0:00:56]}  Bc8 {[%clk 0:01:27]} 26. Bd2 {[%clk 0:00:50]}  Rb3 {[%clk 0:00:52]} 27. Bc2 {[%clk 0:00:31]}  Rb2 {[%clk 0:00:48]} 28. Nxg7 {[%clk 0:00:31]}  Rxc2 {[%clk 0:00:29]} 29. Nxe8 {[%clk 0:00:22]}  Qxe8 {[%clk 0:00:30]} 30. Rf1 {[%clk 0:00:16]}  Bf5 {[%clk 0:00:30]} 31. Rh1 {[%clk 0:00:03]}  Rxd2 {[%clk 0:00:28]} 0-1


[Site "https://www.chess.com"]